Cogmind - Beta 13 @@@ ROGUE MODE // 2024.05.01 @ 07:46:49 Player: flignut Result: Destroyed by G-47 Trooper with Particle Gun Performance ------------- Evolutions (0) 0 Regions Visited (2) 400 Robots Destroyed (16) 80 Value Destroyed (311) 311 Prototype IDs (0) 0 Alien Tech Used (0) 0 Bonus (0) 0 TOTAL SCORE: 791 Bonus ------- None Cogmind --------- Core Integrity 0/250 Matter 300/300 Energy 125/125 System Corruption 0% Temperature Cool (9) Movement Core (250) Ox4 Location -10/Mines Parts ------- > --- POWER (1) -------- Light Ion Engine > --- PROPULSION (2) --- (None) > --- UTILITY (2) ------ Small Storage Unit Hacking Suite > --- WEAPON (2) ------- Grenade Launcher Heavy Hammer > --- INVENTORY (8) ---- Weight Redist. System Signal Interpreter Seismic Detector ECM Suite Light Armor Plating Hacking Suite Peak State ------------ > --- POWER ------------ Light Nuclear Core > --- PROPULSION ------- Wheel Wheel > --- UTILITY ---------- Small Storage Unit Seismic Detector > --- WEAPON ----------- Particle Gun Heavy Hammer > --- INVENTORY -------- Ion Engine Compact Wheel Compact Wheel Light Armor Plating Hacking Suite Hacking Suite Light Assault Rifle Grenade Launcher [Rating: 12] Favorites ----------- Power Ion Engine Engine Ion Engine Power Core Light Nuclear Core Propulsion Wheel Wheel Wheel Hover Unit Hover Unit Utility Small Storage Unit Device Seismic Detector Storage Small Storage Unit Hackware Hacking Suite Protection Light Armor Plating Weapon Light Assault Rifle Energy Gun Particle Gun Ballistic Gun Light Assault Rifle Launcher Grenade Launcher Impact Weapon Heavy Hammer Build | -11 -10 -10 ------- Run | Yrd Mat Min Slots Evolved . | . . . Power . | . . . Propulsion . | . . . Utility . | . . . Weapon . | . . . Parts Attached 24 | 7 15 2 Power 4 | 1 3 . Engine 3 | 1 2 . Core 1 | . 1 . Reactor . | . . . Propulsion 7 | 2 4 1 Treads . | . . . Leg . | . . . Wheel 3 | 2 1 . Hover 4 | . 3 1 Flight . | . . . Utility 7 | 2 5 . Device 3 | 1 2 . Storage 1 | 1 . . Processor . | . . . Hackware 1 | . 1 . Protection 2 | . 2 . Artifact . | . . . Weapon 6 | 2 3 1 Energy Gun 1 | . 1 . Energy Cannon . | . . . Ballistic Gun 3 | 2 1 . Ballistic Cannon . | . . . Launcher 1 | . . 1 Special Weapon . | . . . Impact Weapon 1 | . 1 . Slashing Weapon . | . . . Piercing Weapon . | . . . Special Melee Weapon . | . . . Unidentified Prototypes . | . . . Parts Lost 4 | . . 4 Power . | . . . Propulsion 3 | . . 3 Utility . | . . . Weapon 1 | . . 1 Highest Loss Streak 3 | . . 3 To Critical Strikes . | . . . Average Slot Usage (%) 98 | . 99 88 Engine 12 | . 12 14 Core 1 | . 1 . Wheel 14 | . 16 . Hover 12 | . 11 17 Device 8 | . 9 . Storage 14 | . 14 14 Hackware 2 | . 1 14 Protection 2 | . 3 . Energy Gun 2 | . 2 . Ballistic Gun 16 | . 17 6 Impact Weapon 9 | . 8 14 Naked Turns . | . . . Heaviest Build 19 | 13 19 14 Greatest Support 26 | 26 26 12 Greatest Overweight (x) 4 | . 1 4 Average Overweight (x) . | . . . Largest Inventory Capacity 8 | 8 8 8 Average Capacity 7 | 6 8 8 Most Carried 8 | 5 8 8 Average Carried 7 | 2 7 7 Final Capacity 8 | 8 8 8 Final Carried 8 | 5 8 6 Class Distribution -------------------- 89% | Mutant 10% | Scavenger-Mutant Dominant Class ---------------- Mutant | -10/Materials Mutant | -10/Mines Resources | -11 -10 -10 ----------- Run | Yrd Mat Min Matter Collected 478 | 277 185 16 Remotely . | . . . Salvage Created 595 | 104 453 38 Parts 33 | 7 26 . Haulers Intercepted 1 | . 1 . Recyclers Shooed 1 | . 1 . Parts Field Recycled . | . . . Retrieved Matter . | . . . Parts Self-Destructed . | . . . Prevented . | . . . Kills | -11 -10 -10 ------- Run | Yrd Mat Min Combat Hostiles Destroyed 11 | . 8 3 Melee 4 | . 1 3 Guns 4 | . 4 . Classes Destroyed 8 | 2 5 1 Tunneler 1 | 1 . . Hauler 1 | . 1 . Recycler 2 | 1 1 . Operator 2 | . 2 . Watcher 2 | . 2 . Swarmer 3 | . 3 . Grunt 5 | . 5 . Assembled 3 | . . 3 Best Kill Streak 4 | 2 4 3 Combat Bots Only 3 | . 2 3 Max Kills in Single Turn 1 | 1 1 1 Gunslinging . | . . . Exploded . | . . . Melee 1 | . 1 1 Uniques/NPCs Destroyed . | . . . Combat | -11 -10 -10 -------- Run | Yrd Mat Min Hostile Shots Fired 85 | . 49 36 Missed 28 | . 14 14 Damage Taken 862 | . 451 411 Core 255 | . 117 138 Absorbed by Shields . | . . . Regen/Repaired (Parts) 100 | . 100 . Core Remaining (%) 100 | 100 . . Volleys Fired 43 | 4 39 . Largest 2 | 2 2 . Hottest 65 | 40 65 . Shots Fired 57 | 7 50 . Gun 57 | 7 50 . Cannon . | . . . Launcher . | . . . Special . | . . . Kinetic 42 | 7 35 . Thermal 15 | . 15 . Explosive . | . . . Electromagnetic . | . . . Robot Hit Streak 6 | 3 6 . Robot Miss Streak 3 | 2 3 . Penetration Max . | . . . Secondary Targets . | . . . Shots Hit Robots 53 | 4 44 5 Core Hits 21 | 4 15 2 Critical Kills 2 | . . 2 Critical Parts Destroyed 6 | . 5 1 Critical Strikes 9 | . 6 3 Burn 1 | . 1 . Smash 8 | . 5 3 Melee Attacks 39 | . 25 14 Impact 39 | . 25 14 Slashing . | . . . Piercing . | . . . Sneak Attacks 2 | . 2 . Combat Hostiles . | . . . Follow-up Attacks . | . . . Damage Inflicted 1137 | 39 868 230 Guns 365 | 39 326 . Cannons . | . . . Explosions . | . . . Melee 772 | . 542 230 Ramming . | . . . Kinetic 216 | 39 177 . Thermal 149 | . 149 . Explosive . | . . . Electromagnetic . | . . . Impact 772 | . 542 230 Slashing . | . . . Piercing . | . . . Highest Corruption . | . . . Average Corruption . | . . . Corruption Purged . | . . . Corruption Blocked . | . . . Overload Shots . | . . . Overflow Damage 269 | . 201 68 Projectiles . | . . . Explosions . | . . . Melee 269 | . 201 68 Knockbacks 3 | . 3 . Impact 3 | . 3 . Kinetic . | . . . Secondary . | . . . Self-Inflicted Damage . | . . . Shots . | . . . Rammed . | . . . Targets Rammed . | . . . Kicked . | . . . Crushed . | . . . Highest Temperature 206 | . 206 . Average Temperature 69 | . 69 . Received Heat Transfer 162 | . 90 72 Siege Activations . | . . . Robots Corrupted . | . . . Combat Hostiles . | . . . Parts Fried 2 | . 2 . Impact Corruptions 8 | . 6 2 Robots Melted . | . . . Combat Hostiles . | . . . Parts Melted . | . . . Heat Transferred 444 | . 444 . Parts Sabotaged . | . . . Parts Stolen . | . . . Parts Stripped . | . . . Power Chain Reactions . | . . . Alert | -11 -10 -10 ------- Run | Yrd Mat Min Peak Influence 256 | 10 256 73 Initial 42 | . 6 42 Average 104 | 3 116 54 Maximum Alert Level 1 | . 1 . Low Security (%) 87 | 100 85 100 Level 1 12 | . 14 . Level 2 . | . . . Level 3 . | . . . Level 4 . | . . . Level 5 . | . . . High Security . | . . . Max Security . | . . . Squads Dispatched 2 | . 2 . Investigation . | . . . Extermination . | . . . Reinforcement 2 | . 2 . Assault . | . . . Garrison . | . . . Intercept . | . . . Searches Triggered . | . . . Construction Impeded . | . . . Haulers Reinforced . | . . . Active Scanning Responses . | . . . Cargo Convoy Interrupts . | . . . Stealth | -11 -10 -10 --------- Run | Yrd Mat Min Distress Signals 3 | . 3 . Communications Jammed . | . . . Distress Signals . | . . . Times Spotted 40 | . 18 22 Peak Tracking Total 18 | . 4 18 Tactical Retreats 5 | . 2 3 Traps | -11 -10 -10 ------- Run | Yrd Mat Min Traps Triggered 4 | . 4 . Indirectly . | . . . Trap Hack Attempts . | . . . Triggered . | . . . Disarmed . | . . . Reprogrammed . | . . . Reused . | . . . Traps Extracted . | . . . Installed . | . . . Triggered . | . . . Machines | -11 -10 -10 ---------- Run | Yrd Mat Min Machines Disabled 1 | . 1 . Max in Single Turn 1 | . 1 . Machines Repaired . | . . . Machines Dismantled . | . . . Machines Sabotaged . | . . . Overloaded Fab Kills . | . . . Hacking | -11 -10 -10 --------- Run | Yrd Mat Min Machines Accessed 8 | . 8 . Terminals 7 | . 7 . Fabricators . | . . . Repair Stations 1 | . 1 . Recycling Units . | . . . Scanalyzers . | . . . Garrison Access . | . . . Total Hacks 23 | . 23 . Successful 8 | . 8 . Failed 15 | . 15 . Catastrophic 5 | . 5 . Database Lockouts . | . . . Manual 14 | . 14 . Terminals 17 | . 17 . Fabricators . | . . . Repair Stations 6 | . 6 . Recycling Units . | . . . Scanalyzers . | . . . Garrison Access . | . . . Terminal Hacks 2 | . 2 . Branch Access Points 1 | . 1 . Terminal Index 1 | . 1 . Fabricator Hacks . | . . . Repair Station Hacks 6 | . 6 . Scan Component 3 | . 3 . Repair 3 | . 3 . Recycling Unit Hacks . | . . . Scanalyzer . | . . . Garrison Access Hacks . | . . . Unauthorized Hacks . | . . . Terminals . | . . . Fabricators . | . . . Repair Stations . | . . . Recycling Units . | . . . Scanalyzers . | . . . Garrison Access . | . . . Data Cores Recovered . | . . . Used . | . . . Hacking Detections 7 | . 7 . Full Trace Events 1 | . 1 . Feedback Events . | . . . Feedback Blocked . | . . . Robot Schematics Acquired . | . . . Robots Built . | . . . Authchips . | . . . Time . | . . . Total Robot Build Rating . | . . . Part Schematics Acquired . | . . . Parts Built . | . . . Authchips . | . . . Time . | . . . Total Part Build Rating . | . . . Parts Repaired 3 | . 3 . Time 84 | . 84 . Parts Recycled . | . . . Recycled Matter . | . . . Retrieved Matter . | . . . Retrieved Components . | . . . Parts Scanalyzed . | . . . Part Schematics Acquired . | . . . Parts Damaged . | . . . Bothacking | -11 -10 -10 ------------ Run | Yrd Mat Min Used RIF Installer . | . . . Robots Hacked . | . . . Non-combat . | . . . Combat . | . . . Robot Hacks Applied . | . . . Relay Couplers Released . | . . . Fabnet Peak Effective % . | . . . Robots Rewired . | . . . Allies Hacked . | . . . Hacks Repelled . | . . . Allies | -11 -10 -10 -------- Run | Yrd Mat Min Total Allies . | . . . Largest Group . | . . . Highest-Rated Group . | . . . Highest-Rated Ally . | . . . Total Orders . | . . . Ally Attacks . | . . . Total Damage . | . . . Kills . | . . . Allies Corrupted . | . . . Allies Melted . | . . . Intel | -11 -10 -10 ------- Run | Yrd Mat Min Robot Analysis Total . | . . . Derelict Logs Recovered 1 | . . 1 Drone Launches . | . . . Drone Recoveries . | . . . Exploration | -11 -10 -10 ------------- Run | Yrd Mat Min Turns Passed 1181 | 70 1007 104 Spaces Moved 798 | 50 666 82 Core 3 | 1 . 2 Treads . | . . . Legs . | . . . Wheels 485 | 49 436 . Hover 310 | . 230 80 Flight . | . . . Fastest Speed 50 | 50 56 56 Average Speed 89 | 89 91 75 Slowest Speed 250 | 100 116 250 Overloaded Moves . | . . . Propulsion Burnouts . | . . . Robots Hopped . | . . . Cave-ins Triggered . | . . . Exploration Rate (%) 43 | 4 91 36 Regions Visited 2 Branch Regions 1 Pre-discovered Areas . | . . . Known Exits Taken 1 | . 1 . Unknown Exits Taken 1 | 1 . . Scrap Searched 1 | . . 1 Spaces Dug 10 | . 4 6 Terrain Destroyed 10 | . 4 6 Melee 10 | . 4 6 Projectile . | . . . AOE . | . . . Terrain Rammed . | . . . Walls Destroyed . | . . . Machines Disabled . | . . . Actions | -11 -10 -10 --------- Run | Yrd Mat Min Total 1142 | 67 976 99 Wait 199 | . 198 1 Move 796 | 49 665 82 Hop . | . . . Pick Up 25 | 7 18 . Fast Attach 8 | 5 3 . Attach 4 | 2 . 2 Detach . | . . . Swap 12 | . 12 . Drop 16 | . 16 . Fire 43 | 4 39 . Melee 39 | . 25 14 Ram . | . . . Kick . | . . . Crush . | . . . Escape Stasis . | . . . Rewire . | . . . Trap . | . . . Miscellaneous . | . . . Route ------- -11/Scrapyard -10/Materials (discovered 5 exits: [*Mat x3] / *Min x2) -10/Mines History --------- Turn | Location | Event 11 | -11/Scrapyard | Discovered new exit (range 15) 71 | -11/Scrapyard | Entered Materials 201 | -10/Materials | Discovered new exit (range 16) 237 | -10/Materials | Discovered new exit (range 8) 264 | -10/Materials | Identified exit to Mines 308 | -10/Materials | Build established: Mutant 350 | -10/Materials | Discovered new exit (range 9) 519 | -10/Materials | Discovered new exit (range 15) 1007 | -10/Materials | Repaired Lgt. Armor Plating 1040 | -10/Materials | Repaired Weight Redist. System 1067 | -10/Materials | Repaired Lgt. Ion Engine 1078 | -10/Materials | Entered Mines 1079 | -10/Mines | Assembled infested the area 1084 | -10/Mines | Assisted by a Guerilla fighting off Assembled 1111 | -10/Mines | Learned 2 Materials zone layouts 1128 | -10/Mines | Core integrity fell below 50% 1136 | -10/Mines | Core integrity fell below 20% 1156 | -10/Mines | Lost 3 parts (2n1w) 1182 | -10/Mines | Destroyed by G-47 Trooper with Particle Gun Last Messages --------------- 01121_ as-46964 system corrupted by crushing effect. 01122_ as-05935 sneak attacks. 01122_ K-01 Serf system corrupted by crushing effect. 01123_ K-01 Serf system terminally corrupted. 01123_ Hover Unit destroyed. 01125_ Lgt. Assault Rifle destroyed. 01127_ as-46964 suffers critical hit (Smash). 01127_ as-46964 destroyed. 01132_ as-05935 suffers critical hit (Smash). 01132_ Destroyed Asb. Hover Unit. 01132_ as-05935 system corrupted by crushing effect. 01132_ as-05935 destroyed. 01135_ as-80768 suffers critical hit (Smash). 01135_ as-80768 destroyed. 01140_ Acquired 16 matter. 01162_ The unstable cave ceiling collapses. 01171_ Hover Unit destroyed. Map ----- +----------------------------------------------------+ | | | | | | | | | | | | | | | | | | | | | | | | | | | | | | | | | | | | | | | ?????????????????????????????????????????????????? | | ?????????????????????????????????????????????????? | | ??????????????????###????????????????????????????? | | ?????????????????? ????????????????????????????? | | ?????????????????? ????????????????????????????? | | ??????????????????? ???###??????????????????????? | | ??????????????????? ???#@#??????????????????????? | | ????????????????# ####;##?????????????????????? | | ?????????????????# g #?????????????????????? | | ?????????????????# ####g#?????????????????????? | | ??????????????????? #???# #?????????????????????? | | ???????????????????# #?### #?????????????????????? | | ???????????????????# ### " #?????????????????????? | | ???????????????????# ##### #????????????????? | | ??????????????????## ##"####### #????????????????? | | ??????????????????# #???????????????????????? | | ??????????????????# %%#???????????????????????? | | ??????????????????# """ #???????????????????????? | | ??????????????????# """ ######??????????????????? | | ??????????????????# """ ###### #???????????? | | ??????????????????# %## #?????? | | ??????????????????########?# #### ### ???????? | | ??????????????????????????## ##?????????????????? | | ?????????????????????????## ##??#?????????????? | | ?????????????????#???????# # #?????????????? | | ???????????????? ###???# % #?????????????? | | ??????????????? #??## # ##?????????????? | | ??????????????? #?## ##???????????????? | | ???????????????# ## #???????????????? | | ???????????????????# #???????????????? | | ???????????????????## ##??????????????? | +----------------------------------------------------+ Best States ------------- Heat Dissipation 25 Energy Generation 14 Energy Capacity 250 Matter Stores 300 Matter Capacity 300 Sight Range 16 Terrain Scan Range 16 Terrain Scan Density 10 Armor Coverage 150 Evasion (%) 53 Offensive Hacking 10 Item Schematics ----------------- None Robot Schematics ------------------ None Fabricated ------------ Nothing Alien Tech Used ----------------- None Achievements -------------- None Challenges ------------ None Game ------ Seed VisualWaveReplicator Manual? 0 Play Time 00:53:48 Cumulative 12.7 hours Start 2024.04.30 @ 19:43:00 End 2024.05.01 @ 07:46:49 Sessions 3 Manual Loads 0 Difficulty Rogue Special Mode None Game No. 5 Rogue 5 Adventurer 0 Explorer 0 Win Type - Total 0 Types 0/0/0/0/0/0/0/0/0 Lore% 10 Gallery% 13 Achievement% 11 Wizard Run 0 Options --------- Layout 1 ASCII 0 Keyboard 0 Movement Mouse Keybinds 0 Fullscreen 1 Font 24/Smallcaps Map View 50x35 Zoom Use 0% Tactical HUD 1 Map Filters NONE Filters NONE Steam 1 RUN: e2b33770-385a-450a-91b2-c9a70357bc83